fUSD/lending_fUSD_20250128
["ID","MTS","AMOUNT","RATE_DAILY","PERIOD"]
[350717165,1738078334221,549.88717534,0.00011869,2]
[350717166,1738078334528,549.88717534,0.00011904,2]
[350717167,1738078341802,200.0,0.00011888,2]
[350717169,1738078567286,200.0,0.00011884,2]
[350717170,1738078567591,200.0,0.00011896,2]
[350717177,1738079072038,254.31,0.00010137,2]
[350717179,1738079085805,1022.32003544,0.00012688,2]
[350717190,1738079367092,-1058.0,0.00013355,2]
[350717191,1738079367116,-1058.0,0.00014058,2]
[350717192,1738079367138,-2144.143398,0.000147,5]
[350717196,1738079375909,1120.98652038,0.00023,120]
[350717204,1738079432259,-1058.0,0.00014798,2]
[350717205,1738079432269,-1058.0,0.00015577,2]
[350717206,1738079432278,-289.38,0.0001626,2]
[350717207,1738079432287,-1058.0,0.00016356,2]
[350717208,1738079432298,-150.0,0.0001646,2]
[350717209,1738079432307,-254.31,0.00016813,2]
[350717210,1738079432317,-150.0,0.0001716,2]
[350717211,1738079432326,-1058.0,0.00017174,2]
[350717212,1738079432335,-500.0,0.00017319,2]
[350717213,1738079432344,-500.0,0.00017319,2]
[350717214,1738079432353,-1058.0,0.00018032,2]
[350717215,1738079432363,-1186.0,0.00018223,2]
[350717216,1738079432373,-2215.0,0.000183,2]
[350717217,1738079432382,-190.61,0.00018338,2]
[350717218,1738079432391,-284.65,0.00018444,2]
[350717219,1738079432400,-5001.0,0.000185,2]
[350717220,1738079432410,-794.757,0.000185,2]
[350717221,1738079432418,-1480.0,0.000185,5]
[350717222,1738079432428,-289.38,0.00018524,2]
[350717223,1738079432437,-1000.0,0.00018528,2]
[350717224,1738079432446,-161.25,0.00018559,2]
[350717225,1738079432455,-167.65550355,0.0001863,2]
[350717226,1738079432464,-167.65550355,0.00018849,2]
[350717227,1738079432473,-2020.0,0.00018915,2]
[350717228,1738079432483,-1271.0,0.00018915,2]
[350717229,1738079432491,-150.0,0.00018915,2]
[350717230,1738079432501,-637.0,0.00018915,2]
[350717231,1738079432510,-568.0,0.00018915,2]
[350717232,1738079432520,-1866.0,0.00018915,2]
[350717233,1738079432529,-907.0,0.00018915,2]
[350717234,1738079432538,-1262.0,0.00018915,2]
[350717235,1738079432547,-782.0,0.00018915,2]
[350717236,1738079432556,-2950.0,0.00018915,2]
[350717237,1738079432565,-1322.0,0.00018915,2]
[350717238,1738079432574,-538.0,0.00018915,2]
[350717239,1738079432583,-150.0,0.00018915,2]
[350717240,1738079432592,-150.0,0.00018915,2]
[350717241,1738079432601,-150.375,0.00018915,2]
[350717242,1738079432610,-3906.0,0.00018915,2]
[350717243,1738079432619,-1005.0,0.00018915,2]
[350717244,1738079432628,-1058.0,0.00018934,2]
[350717245,1738079432637,-167.65550355,0.00019041,2]
[350717246,1738079432646,-175.99,0.00019096,2]
[350717247,1738079432656,-202.37,0.00019162,2]
[350717248,1738079432666,-766.29999999,0.00019178,2]
[350717249,1738079432676,-150.0,0.00019178,2]
[350717251,1738079432685,-3213.0,0.00019183,2]
[350717253,1738079432694,-167.65550355,0.00019233,2]
[350717255,1738079432702,-199.4,0.00019234,2]
[350717257,1738079432711,-1023.08,0.00019234,2]
[350717259,1738079432720,-250.0,0.00019291,2]
[350717261,1738079432729,-167.65550355,0.00019425,2]
[350717263,1738079432739,-266.42,0.00019451,30]
[350717265,1738079432752,-500.0,0.00019508,2]
[350717267,1738079432761,-500.0,0.00019511,2]
[350717269,1738079432771,-500.0,0.00019511,2]
[350717271,1738079432780,-535.6198,0.00019598,2]
[350717273,1738079432790,-167.65550355,0.00019644,2]
[350717275,1738079432799,-150.0,0.00019683,2]
[350717277,1738079432808,-1058.0,0.00019881,2]
[350717279,1738079432818,-2317.2642,0.000199,2]
[350717281,1738079432827,-5000.0,0.000199,2]
[350717283,1738079432836,-155.85898737,0.000199,2]
[350717285,1738079432846,-599.85,0.000199,31]
[350717287,1738079432855,-599.85,0.000199,31]
[350717289,1738079432864,-599.85,0.000199,31]
[350717291,1738079432873,-599.85,0.000199,31]
[350717293,1738079432882,-599.85,0.000199,31]
[350717295,1738079432890,-599.85,0.000199,31]
[350717297,1738079432899,-599.85,0.000199,31]
[350717299,1738079432908,-197.0194938,0.000199,31]
[350717301,1738079432920,-402.8305062,0.000199,31]
[350717303,1738079432929,-571.17842744,0.000199,31]
[350717305,1738079432940,-28.67157256,0.000199,31]
[350717307,1738079432949,-599.85,0.000199,31]
[350717309,1738079432957,-505.03259838,0.000199,31]
[350717311,1738079432969,-94.81740162,0.000199,31]
[350717313,1738079432978,-599.85,0.000199,31]
[350717315,1738079432986,-530.78479786,0.000199,31]
[350717317,1738079432997,-69.06520214,0.000199,31]
[350717319,1738079433007,-599.85,0.000199,31]
[350717321,1738079433015,-599.85,0.000199,31]
[350717323,1738079433025,-599.85,0.000199,31]
[350717325,1738079433034,-639.46005042,0.00019991,2]
[350717327,1738079433043,-250.75591989,0.00019999,2]
[350717329,1738079433052,-240.66258208,0.00019999,2]
[350717331,1738079433061,-500.0,0.00019999,2]
[350717333,1738079433071,-500.0,0.00019999,2]
[350717335,1738079433080,-500.0,0.00019999,2]
[350717337,1738079433089,-888.31304547,0.0002,3]
[350717339,1738079433100,-168718.96447614,0.0002,3]
[350717341,1738079433111,-1990.29909972,0.0002,3]
[350717343,1738079433123,-391.16567045,0.0002,3]
[350717346,1738079433138,-427.62,0.0002,3]
[350717348,1738079433149,-1596.6,0.0002,3]
[350717350,1738079433161,-3217.41831045,0.0002,3]
[350717353,1738079433176,-10425.0,0.0002,3]
[350717355,1738079433187,-3015.79147991,0.0002,3]
[350717357,1738079433198,-315.99917098,0.0002,3]
[350717359,1738079433210,-2540.74008465,0.0002,3]
[350717361,1738079433219,-154.35058266,0.0002,2]
[350717363,1738079433228,-155.85898731,0.00020085,2]
[350717365,1738079433237,-150.99,0.00020145,2]
[350717367,1738079433246,-9999.99,0.00020145,2]
[350717369,1738079433256,-999.99,0.00020145,2]
[350717371,1738079433266,-150.99,0.00020145,2]
[350717372,1738079433275,-299.99,0.00020145,7]
[350717374,1738079433285,-4163.27,0.00020145,2]
[350717376,1738079433295,-150.0,0.00020187,2]
[350717377,1738079433304,-150.6,0.00020192,2]
[350717379,1738079433314,-155.85898731,0.00020271,2]
[350717381,1738079433324,-300.0,0.00020356,2]
[350717383,1738079433333,-150.0,0.00020356,2]
[350717384,1738079433342,-300.0,0.00020356,2]
[350717386,1738079433352,-596.2,0.00020356,2]
[350717388,1738079433361,-876.14,0.00020356,2]
[350717389,1738079433371,-150.0,0.00020356,2]
[350717391,1738079433380,-150.0,0.00020356,2]
[350717393,1738079433389,-200.0,0.00020381,2]
[350717395,1738079433398,-150.0,0.00020448,2]
[350717396,1738079433408,-155.85898731,0.00020456,2]
[350717398,1738079433417,-150.0,0.0002049,2]
[350717400,1738079433426,-3000.0,0.0002049,2]
[350717401,1738079433436,-2500.0,0.00020491,2]
[350717403,1738079433445,-3000.0,0.000205,2]
[350717405,1738079433454,-2110.0,0.000205,2]
[350717406,1738079433463,-177.64,0.00020548,2]
[350717408,1738079433473,-2500.0,0.00020577,2]
[350717410,1738079433483,-2000.0,0.00020597,2]
[350717412,1738079433492,-155.85898731,0.00020642,2]
[350717413,1738079433502,-150.0,0.00020692,2]
[350717415,1738079433511,-150.0,0.00020694,2]
[350717417,1738079433521,-1978.01433786,0.000207,2]
[350717418,1738079433530,-152.26540854,0.000207,4]
[350717420,1738079433540,-159.0,0.000207,3]
[350717422,1738079433549,-25000.0,0.0002071,2]
[350717424,1738079433558,-5000.0,0.00020785,2]
[350717426,1738079433568,-289.38,0.00020788,2]
[350717427,1738079433578,-1456.25154834,0.00020798,31]
[350717429,1738079433590,-2543.74845166,0.00020798,31]
[350717431,1738079433600,-217.3001,0.00020799,2]
[350717433,1738079433609,-111.66234447,0.00020799,2]
[350717895,1738079438336,-275.581,0.00020369,2]
[350717898,1738079438346,-191.599,0.00020799,2]
[350717910,1738079438442,-985.22995553,0.00020799,2]
[350717912,1738079438452,-155.85898731,0.00020827,2]
[350717914,1738079438462,-206.0,0.0002083,2]
[350717916,1738079438472,-215.0,0.0002083,2]
[350717918,1738079438482,-211.0,0.0002083,2]
[350717920,1738079438492,-205.0,0.0002083,2]
[350717922,1738079438501,-207.0,0.0002083,2]
[350717924,1738079438511,-238.0,0.0002083,2]
[350717926,1738079438520,-211.0,0.0002083,2]
[350717928,1738079438530,-1000.0,0.00020844,2]
[350717930,1738079438539,-6283.1009,0.00020859,2]
[350717932,1738079438549,-500.0,0.00020899,2]
[350717934,1738079438558,-500.0,0.00020899,2]
[350717936,1738079438567,-500.0,0.00020899,2]
[350717938,1738079438577,-500.0,0.00020899,2]
[350717940,1738079438587,-500.0,0.00020899,2]
[350717942,1738079438596,-500.0,0.00020899,2]
[350717944,1738079438605,-500.0,0.00020899,2]
[350717946,1738079438615,-500.0,0.00020899,2]
[350717948,1738079438624,-500.0,0.00020899,2]
[350717950,1738079438633,-500.0,0.00020899,2]
[350717952,1738079438643,-500.0,0.00020899,2]
[350717954,1738079438652,-500.0,0.00020899,2]
[350717956,1738079438663,-500.0,0.00020899,2]
[350717958,1738079438672,-500.0,0.00020899,2]
[350717960,1738079438681,-500.0,0.00020899,2]
[350717961,1738079438691,-500.0,0.00020899,2]
[350717963,1738079438700,-74908.3208,0.000209,2]
[350717965,1738079438709,-2178.16,0.00020904,2]
[350717967,1738079438718,-2551.76,0.00020922,2]
[350717969,1738079438728,-500.0,0.00020926,2]
[350717971,1738079438738,-2930.14,0.00020936,7]
[350717973,1738079438750,-2930.14,0.00020936,7]
[350717975,1738079438760,-500.0,0.00020954,2]
[350717977,1738079438769,-5000.0,0.00020957,2]
[350717979,1738079438779,-500.0,0.00020958,2]
[350717981,1738079438788,-2000.0,0.00020959,13]
[350717983,1738079438797,-2000.0,0.00020959,13]
[350717985,1738079438806,-2000.0,0.00020959,13]
[350717987,1738079438815,-2000.0,0.00020959,13]
[350717989,1738079438828,-2000.0,0.00020959,13]
[350717991,1738079438839,-2000.0,0.00020959,13]
[350717993,1738079438850,-2000.0,0.00020959,13]
[350717995,1738079438859,-2000.0,0.00020959,13]
[350717997,1738079438868,-2000.0,0.00020959,13]
[350717999,1738079438877,-2000.0,0.00020959,13]
[350718001,1738079438886,-2000.0,0.00020959,13]
[350718003,1738079438895,-2000.0,0.00020959,13]
[350718005,1738079438905,-2000.0,0.00020959,13]
[350718007,1738079438914,-2000.0,0.00020959,13]
[350718009,1738079438924,-2000.0,0.00020959,13]
[350718011,1738079438933,-2000.0,0.00020959,13]
[350718013,1738079438942,-2000.0,0.00020959,13]
[350718015,1738079438951,-2000.0,0.00020959,13]
[350718017,1738079438960,-2000.0,0.00020959,13]
[350718019,1738079438969,-2000.0,0.00020959,13]
[350718021,1738079438978,-2000.0,0.00020959,13]
[350718023,1738079438987,-2000.0,0.00020959,13]
[350718025,1738079438996,-2000.0,0.00020959,13]
[350718027,1738079439005,-2000.0,0.00020959,13]
[350718029,1738079439014,-2000.0,0.00020959,13]
[350718031,1738079439023,-2000.0,0.00020959,13]
[350718032,1738079439032,-2000.0,0.00020959,13]
[350718033,1738079439041,-2000.0,0.00020959,13]
[350718034,1738079439050,-2000.0,0.00020959,13]
[350718035,1738079439060,-2000.0,0.00020959,13]
[350718036,1738079439071,-2000.0,0.00020959,13]
[350718037,1738079439081,-2000.0,0.00020959,13]
[350718038,1738079439090,-2000.0,0.00020959,13]
[350718039,1738079439099,-2000.0,0.00020959,13]
[350718040,1738079439108,-2000.0,0.00020959,13]
[350718042,1738079439117,-2000.0,0.00020959,13]
[350718044,1738079439126,-2000.0,0.00020959,13]
[350718046,1738079439136,-2000.0,0.00020959,13]
[350718047,1738079439145,-2000.0,0.00020959,13]
[350718050,1738079439155,-2000.0,0.00020959,13]
[350718051,1738079439164,-2000.0,0.00020959,13]
[350718053,1738079439174,-2000.0,0.00020959,13]
[350718055,1738079439183,-2000.0,0.00020959,13]
[350718057,1738079439193,-2000.0,0.00020959,13]
[350718059,1738079439202,-2000.0,0.00020959,13]
[350718061,1738079439212,-1786.0,0.00020959,13]
[350718063,1738079439221,-5000.0,0.00020979,2]
[350718065,1738079439233,-789.64748127,0.00020981,2]
[350718067,1738079439243,-500.0,0.00020999,2]
[350718083,1738079439400,-311.84825887,0.00020999,2]
[350718085,1738079439411,-899.99999906,0.00021,22]
[350718087,1738079439420,-1041.0,0.00021,2]
[350718089,1738079439429,-1260.97526848,0.00021,2]
[350718091,1738079439442,-15727.39802271,0.00021,2]
[350718093,1738079439453,-643.25932,0.00021,2]
[350718096,1738079439472,-297.65361869,0.00021,2]
[350718098,1738079439483,-2403.99999922,0.00021,2]
[350718101,1738079439494,-1083.74914823,0.00021,2]
[350718103,1738079439503,-419.4571364,0.00021,15]
[350718105,1738079439512,-1144.34947932,0.00021,2]
[350718107,1738079439523,-188.82420783,0.00021,2]
[350718109,1738079439532,-500.0,0.00021,30]
[350718111,1738079439542,-554.0,0.00021,30]
[350718113,1738079439551,-6483.76802823,0.00021,30]
[350718115,1738079439563,-451.75197529,0.00021,30]
[350718117,1738079439575,-317.46,0.00021,30]
[350718119,1738079439586,-909.109,0.00021,30]
[350718121,1738079439597,-384.10907509,0.00021,30]
[350718180,1738079440088,-766.11,0.00019999,2]
[350718182,1738079440097,-766.11,0.00020958,2]
[350718184,1738079440106,-766.11,0.00020999,2]
[350718186,1738079440116,-97136.96134183,0.00021,30]
[350718188,1738079440125,-1201.8666348,0.00021,10]
[350718190,1738079440134,-600.0,0.00021,3]
[350718192,1738079440144,-31000.0,0.00021,5]
[350718194,1738079440155,-31000.0,0.00021,10]
[350718196,1738079440165,-11044.70538831,0.00021,2]
[350718198,1738079440173,-371.45,0.00021,2]
[350718200,1738079440183,-5000.0,0.00021,2]
[350718202,1738079440192,-5715.36,0.00021,2]
[350718204,1738079440201,-2110.0,0.00021,2]
[350718206,1738079440210,-155.85898731,0.00021013,2]
[350718208,1738079440219,-577.07,0.0002104,2]
[350718210,1738079440229,-190.61,0.00021051,2]
[350718212,1738079440239,-485.764662,0.00021073,2]
[350718214,1738079440249,-2270.18709749,0.00021079,4]
[350718216,1738079440258,-152.0,0.00021097,5]
[350718218,1738079440268,-500.0,0.00021099,2]
[350718220,1738079440278,-766.11,0.00021099,2]
[350718222,1738079440287,-11242.65218312,0.000211,2]
[350718224,1738079440296,-648.25352025,0.000211,2]
[350718226,1738079440306,-2600.0,0.000211,2]
[350718228,1738079440315,-2600.0,0.000211,2]
[350718230,1738079440324,-2600.0,0.000211,2]
[350718232,1738079440334,-2600.0,0.000211,2]
[350718234,1738079440343,-500.0,0.000211,2]
[350718236,1738079440353,-1069.74404669,0.000211,2]
[350718240,1738079440386,-420.30757999,0.000211,2]
[350718242,1738079440397,-1109.94837332,0.000211,2]
[350718244,1738079440407,-500.0,0.000211,2]
[350718246,1738079440417,-2600.0,0.000211,2]
[350718248,1738079440426,-2600.0,0.000211,2]
[350718250,1738079440435,-500.0,0.000211,2]
[350718252,1738079440444,-2600.0,0.000211,2]
[350718254,1738079440453,-2600.0,0.000211,2]
[350718256,1738079440463,-2600.0,0.000211,2]
[350718258,1738079440472,-500.0,0.000211,2]
[350718260,1738079440481,-759.09578064,0.000211,2]
[350718262,1738079440490,-2600.0,0.000211,2]
[350718264,1738079440499,-583.68216814,0.000211,2]
[350718266,1738079440509,-2600.0,0.000211,2]
[350718268,1738079440519,-2600.0,0.000211,2]
[350718270,1738079440529,-1400.0,0.000211,2]
[350718272,1738079440539,-4278.91798104,0.000211,2]
[350718274,1738079440549,-1400.0,0.000211,2]
[350718276,1738079440558,-1400.0,0.000211,2]
[350718278,1738079440568,-1400.0,0.000211,2]
[350718280,1738079440577,-1400.0,0.000211,2]
[350718282,1738079440586,-1400.0,0.000211,2]
[350718284,1738079440595,-1400.0,0.000211,2]
[350718285,1738079440604,-1400.0,0.000211,2]
[350718286,1738079440613,-1400.0,0.000211,2]
[350718287,1738079440622,-1400.0,0.000211,2]
[350718288,1738079440631,-1400.0,0.000211,2]
[350718289,1738079440641,-1400.0,0.000211,2]
[350718290,1738079440651,-1400.0,0.000211,2]
[350718291,1738079440663,-1501.023267,0.000211,2]
[350718292,1738079440672,-500.0,0.000211,2]
[350718293,1738079440683,-500.0,0.000211,2]
[350718294,1738079440692,-500.0,0.000211,2]
[350718295,1738079440701,-500.0,0.000211,2]
[350718297,1738079440711,-500.0,0.000211,2]
[350718299,1738079440720,-541.33684084,0.000211,2]
[350718300,1738079440729,-983.43947912,0.000211,2]
[350718302,1738079440739,-500.0,0.000211,2]
[350718304,1738079440754,-500.0,0.000211,2]
[350718306,1738079440764,-500.0,0.000211,2]
[350718308,1738079440773,-500.0,0.000211,2]
[350718310,1738079440782,-500.0,0.000211,2]
[350718312,1738079440792,-500.0,0.000211,2]
[350718314,1738079440802,-500.0,0.000211,2]
[350718316,1738079440812,-500.0,0.000211,2]
[350718318,1738079440821,-500.0,0.000211,2]
[350718320,1738079440830,-500.0,0.000211,2]
[350718322,1738079440840,-500.0,0.000211,2]
[350718324,1738079440849,-500.0,0.000211,2]
[350718326,1738079440858,-500.0,0.000211,2]
[350718328,1738079440867,-500.0,0.000211,2]
[350718330,1738079440877,-500.0,0.000211,2]
[350718332,1738079440886,-517.91962555,0.000211,2]
[350718334,1738079440895,-725.21158356,0.000211,2]
[350718336,1738079440906,-700.0,0.000211,2]
[350718338,1738079440915,-500.0,0.000211,2]
[350718340,1738079440925,-500.0,0.000211,2]
[350718342,1738079440934,-500.0,0.000211,2]
[350718344,1738079440944,-500.0,0.000211,2]
[350718346,1738079440954,-700.0,0.000211,2]
[350718348,1738079440963,-977.62789915,0.000211,2]
[350718350,1738079440972,-500.0,0.000211,2]
[350718352,1738079440982,-700.0,0.000211,2]
[350718354,1738079440991,-500.0,0.000211,2]
[350718356,1738079441001,-700.0,0.000211,2]
[350718358,1738079441010,-500.0,0.000211,2]
[350718359,1738079441018,-700.0,0.000211,2]
[350718360,1738079441027,-700.0,0.000211,2]
[350718361,1738079441036,-700.0,0.000211,2]
[350718362,1738079441045,-500.0,0.000211,2]
[350718363,1738079441054,-700.0,0.000211,2]
[350718364,1738079441063,-500.0,0.000211,2]
[350718365,1738079441073,-700.0,0.000211,2]
[350718366,1738079441082,-500.0,0.000211,2]
[350718367,1738079441091,-700.0,0.000211,2]
[350718369,1738079441101,-500.0,0.000211,2]
[350718371,1738079441111,-700.0,0.000211,2]
[350718372,1738079441120,-500.0,0.000211,2]
[350718374,1738079441129,-677.09700172,0.000211,2]
[350718377,1738079441141,-322.90299828,0.000211,2]
[350718379,1738079441150,-700.0,0.000211,2]
[350718381,1738079441161,-500.0,0.000211,2]
[350718383,1738079441171,-1000.0,0.000211,2]
[350718385,1738079441180,-483.05128672,0.000211,2]
[350718387,1738079441192,-216.94871328,0.000211,2]
[350718389,1738079441202,-732.2302289,0.000211,2]
[350718391,1738079441211,-1000.0,0.000211,2]
[350718393,1738079441220,-1077.22953827,0.000211,2]
[350718395,1738079441229,-1000.0,0.000211,2]
[350718397,1738079441240,-1000.0,0.000211,2]
[350718399,1738079441249,-1000.0,0.000211,2]
[350718401,1738079441258,-214.96506955,0.000211,2]
[350718403,1738079441273,-501.675,0.000211,2]
[350718405,1738079441284,-283.35993045,0.000211,2]
[350718407,1738079441293,-1000.0,0.000211,2]
[350718409,1738079441302,-1000.0,0.000211,2]
[350718411,1738079441311,-1000.0,0.000211,2]
[350718413,1738079441320,-1000.0,0.000211,2]
[350718415,1738079441329,-1000.0,0.000211,2]
[350718417,1738079441339,-1000.0,0.000211,2]
[350718419,1738079441348,-1982.45079597,0.000211,2]
[350718421,1738079441358,-200097.96840809,0.000211,2]
[350718423,1738079441367,-161.80746257,0.0002112,2]
[350718425,1738079441376,-1908.0,0.0002115,5]
[350718427,1738079441386,-210.0,0.0002115,2]
[350718429,1738079441395,-206.0,0.0002115,2]
[350718432,1738079441405,-215.0,0.0002115,2]
[350718433,1738079441415,-211.0,0.0002115,2]
[350718435,1738079441424,-205.0,0.0002115,2]
[350718437,1738079441433,-207.0,0.0002115,2]
[350718439,1738079441442,-238.0,0.0002115,2]
[350718441,1738079441452,-211.0,0.0002115,2]
[350718443,1738079441461,-293.00610182,0.00021153,2]
[350718445,1738079441471,-154.650166,0.00021155,7]
[350718447,1738079441480,-154.650166,0.00021155,3]
[350718449,1738079441489,-176.70780697,0.00021156,5]
[350718451,1738079441498,-464.71167199,0.00021156,5]
[350718453,1738079441507,-73831.68326314,0.0002116,2]
[350718455,1738079441518,-440.47076,0.0002116,2]
[350718458,1738079441529,-266.88,0.0002116,2]
[350718460,1738079441545,-798.29339997,0.0002116,2]
[350718462,1738079441556,-641.16499998,0.0002116,2]
[350718868,1738079445347,-1107.0,0.00018945,2]
[350718871,1738079445356,-500.0,0.000197,7]
[350718873,1738079445366,-500.0,0.000197,7]
[350718876,1738079445376,-500.0,0.000197,7]
[350718879,1738079445385,-500.0,0.000197,7]
[350718882,1738079445395,-584.25,0.00019999,2]
[350718885,1738079445404,-584.25,0.00020958,2]
[350718888,1738079445415,-584.25,0.00020999,2]
[350718891,1738079445424,-584.25,0.00021099,2]
[350718894,1738079445433,-164.158083,0.00021155,7]
[350718897,1738079445442,-72178.84192,0.0002116,2]
[350718900,1738079445454,-42329.8215,0.0002116,2]
[350718919,1738079445552,-868.29952468,0.0002116,2]
[350718921,1738079445563,-2106.26210101,0.0002116,2]
[350718941,1738079445750,-500.0,0.000197,7]
[350718944,1738079445759,-15021.5,0.0002116,2]
[350718988,1738079446117,-165.89625775,0.000209,2]
[350718989,1738079446127,-5354.02337736,0.0002116,2]
[350718992,1738079446136,-250.0,0.0002117,2]
[350718994,1738079446146,-300.0,0.0002117,2]
[350718995,1738079446155,-5149.0,0.0002118,30]
[350718997,1738079446168,-150.0,0.00021197,2]
[350718999,1738079446177,-155.85898731,0.00021198,2]
[350719001,1738079446187,-195.96698399,0.00021198,2]
[350719003,1738079446197,-164.27797926,0.00021198,2]
[350719005,1738079446206,-5643.4015,0.000212,6]
[350719007,1738079446216,-1404.93230421,0.000212,2]
[350719009,1738079446226,-186.90473831,0.000212,3]
[350719011,1738079446235,-2449.8659766,0.000212,2]
[350719013,1738079446245,-500.0,0.00021203,2]
[350719015,1738079446254,-1363.84,0.00021209,2]
[350719017,1738079446264,-2930.14,0.0002121,7]
[350719019,1738079446273,-2930.14,0.0002121,7]
[350719020,1738079446283,-500.0,0.00021219,2]
[350719021,1738079446292,-766.11,0.00021219,2]
[350719022,1738079446300,-766.11,0.00021219,2]
[350719023,1738079446310,-584.25,0.00021219,2]
[350719024,1738079446319,-584.25,0.00021219,2]
[350719025,1738079446329,-20410.02100821,0.0002122,2]
[350719026,1738079446340,-1827.6,0.0002122,2]
[350719028,1738079446352,-2155.4,0.0002122,2]
[350719031,1738079446367,-760.0,0.00020289,2]
[350719033,1738079446376,-1938.75,0.0002122,2]
[350719035,1738079446388,-1587.472525,0.0002122,2]
[350719037,1738079446399,-428.315005,0.0002122,2]
[350719039,1738079446410,-411.02692,0.0002122,2]
[350719042,1738079446429,-657.27927126,0.0002122,2]
[350719044,1738079446441,-2068.4,0.0002122,2]
[350719046,1738079446452,-320.326097,0.0002122,2]
[350719052,1738079446500,-500.0,0.000197,7]
[350719054,1738079446510,-51353.3276899,0.0002122,2]
[350719671,1738079464308,583.00892656,0.00011886,2]
[350719672,1738079464623,583.00892656,0.00011857,2]
[350719673,1738079465018,583.00892656,0.00011834,2]
[350719674,1738079465360,583.00892656,0.00011868,2]
[350719675,1738079465692,583.00892656,0.00011884,2]
[350719676,1738079472520,200.0,0.00011912,2]
[350719677,1738079473008,200.0,0.00011834,2]
[350719678,1738079473315,200.0,0.00011838,2]
[350719679,1738079491863,150.0,0.0002131,120]
[350719682,1738079886912,211.22,0.00010137,2]
[350719685,1738079948244,550.0,0.00013,2]
[350719712,1738080632267,-336.42587752,0.00015,2]
[350719713,1738080632318,-263.57412248,0.00015,2]
[350719714,1738080632327,-1004.0,0.000163,5]
[350719715,1738080632337,-400.0,0.00017384,2]
[350719716,1738080632346,-500.0,0.00017384,2]
[350719717,1738080632356,-150.0,0.00017739,2]
[350719718,1738080632365,-3284.66759338,0.00018095,2]
[350719719,1738080632375,-1271.0,0.00018967,2]
[350719720,1738080632384,-2020.0,0.00018967,2]
[350719721,1738080632394,-637.0,0.00018967,2]
[350719722,1738080632403,-150.0,0.00018967,2]
[350719723,1738080632414,-568.0,0.00018967,2]
[350719724,1738080632425,-1866.0,0.00018967,2]
[350719725,1738080632434,-1262.0,0.00018967,2]
[350719726,1738080632444,-2950.0,0.00018967,2]
[350719727,1738080632454,-907.0,0.00018967,2]
[350719728,1738080632464,-782.0,0.00018967,2]
[350719729,1738080632473,-1271.104,0.00018967,2]
[350719730,1738080632483,-538.0,0.00018967,2]
[350719731,1738080632492,-150.0,0.00018967,2]
[350719732,1738080632502,-1005.0,0.00018967,2]
[350719733,1738080632511,-3906.0,0.00018967,2]
[350719734,1738080632520,-150.0,0.00018967,2]
[350719735,1738080632529,-150.0,0.00019122,2]
[350719736,1738080632539,-150.0,0.00019122,2]
[350719737,1738080632548,-1633.0,0.00019391,2]
[350719738,1738080632557,-500.0,0.00019567,2]
[350719739,1738080632566,-500.0,0.00019576,2]